fUSD/lending_fUSD_20250426
["ID","MTS","AMOUNT","RATE_DAILY","PERIOD"]
[359085346,1745700643816,-500.0,0.00019799,2]
[359085348,1745700643830,-400.0,0.00019799,2]
[359085350,1745700643841,-741.66,0.00019799,2]
[359085352,1745700643850,-451.32,0.00019799,2]
[359085354,1745700643860,-595.67,0.00019799,2]
[359085356,1745700643871,-515.52386611,0.00019799,2]
[359085358,1745700643880,-400.0,0.00019799,2]
[359085360,1745700643890,-562.53,0.00019799,2]
[359085362,1745700643899,-400.0,0.00019799,2]
[359085364,1745700643909,-289.85545901,0.00019799,2]
[359085366,1745700643918,-590.34,0.00019799,2]
[359085368,1745700643928,-400.0,0.00019799,2]
[359085370,1745700643937,-500.0,0.00019799,2]
[359085394,1745700644148,-400.0,0.00019799,2]
[359085396,1745700644159,-400.0,0.00019799,2]
[359085398,1745700644168,-400.0,0.00019799,2]
[359085400,1745700644178,-400.0,0.00019799,2]
[359085402,1745700644188,-500.0,0.00019799,2]
[359085404,1745700644197,-400.0,0.00019799,2]
[359085406,1745700644207,-520.48143566,0.00019799,2]
[359085408,1745700644216,-409.01,0.00019799,2]
[359085410,1745700644226,-400.0,0.00019799,2]
[359085412,1745700644235,-400.0,0.00019799,2]
[359085414,1745700644245,-400.0,0.00019799,2]
[359085416,1745700644255,-400.0,0.00019799,2]
[359085418,1745700644264,-400.0,0.00019799,2]
[359085420,1745700644274,-400.0,0.00019799,2]
[359085422,1745700644284,-400.0,0.00019799,2]
[359085424,1745700644294,-543.38,0.00019799,2]
[359085427,1745700644304,-400.0,0.00019799,2]
[359085429,1745700644313,-518.85,0.00019799,2]
[359085430,1745700644323,-776.66,0.00019799,2]
[359085431,1745700644332,-400.0,0.00019799,2]
[359085432,1745700644342,-721.54,0.00019799,2]
[359085433,1745700644353,-459.83,0.00019799,2]
[359085434,1745700644363,-828.02,0.00019799,2]
[359085435,1745700644373,-828.02,0.00019799,2]
[359085436,1745700644382,-400.0,0.00019799,2]
[359085437,1745700644392,-510.8509464,0.00019799,2]
[359085438,1745700644402,-400.0,0.00019799,2]
[359085439,1745700644412,-400.0,0.00019799,2]
[359085440,1745700644422,-400.0,0.00019799,2]
[359085442,1745700644432,-518.00734972,0.00019799,2]
[359085444,1745700644442,-400.0,0.00019799,2]
[359085446,1745700644453,-400.0,0.00019799,2]
[359085448,1745700644463,-400.0,0.00019799,2]
[359085450,1745700644473,-425.33874986,0.00019799,2]
[359085452,1745700644482,-520.05285185,0.00019799,2]
[359085454,1745700644492,-636.95,0.00019799,2]
[359085456,1745700644502,-400.0,0.00019799,2]
[359085458,1745700644511,-432.57,0.00019799,2]
[359085460,1745700644521,-400.0,0.00019799,2]
[359085462,1745700644530,-400.0,0.00019799,2]
[359085464,1745700644540,-400.0,0.00019799,2]
[359085466,1745700644551,-400.0,0.00019799,2]
[359085468,1745700644561,-400.0,0.00019799,2]
[359085470,1745700644570,-400.0,0.00019799,2]
[359085472,1745700644580,-500.0,0.00019799,2]
[359085474,1745700644590,-421.2,0.00019799,2]
[359085476,1745700644599,-400.0,0.00019799,2]
[359085478,1745700644609,-400.0,0.00019799,2]
[359085480,1745700644619,-624.3,0.00019799,2]
[359085482,1745700644628,-400.0,0.00019799,2]
[359085484,1745700644638,-500.0,0.00019799,2]
[359085486,1745700644648,-400.0,0.00019799,2]
[359085487,1745700644660,-400.0,0.00019799,2]
[359085490,1745700644670,-400.0,0.00019799,2]
[359085492,1745700644680,-400.0,0.00019799,2]
[359085494,1745700644690,-400.0,0.00019799,2]
[359085496,1745700644699,-400.0,0.00019799,2]
[359085498,1745700644709,-412.17,0.00019799,2]
[359085500,1745700644718,-400.0,0.00019799,2]
[359085502,1745700644729,-494.71801646,0.00019799,2]
[359085504,1745700644739,-400.0,0.00019799,2]
[359085506,1745700644750,-400.0,0.00019799,2]
[359085508,1745700644759,-766.32,0.00019799,2]
[359085510,1745700644769,-400.0,0.00019799,2]
[359085512,1745700644778,-400.0,0.00019799,2]
[359085514,1745700644788,-546.31,0.00019799,2]
[359085516,1745700644798,-449.06,0.00019799,2]
[359085518,1745700644808,-400.0,0.00019799,2]
[359085520,1745700644817,-450.58,0.00019799,2]
[359085522,1745700644827,-473.9,0.00019799,2]
[359085524,1745700644837,-400.0,0.00019799,2]
[359085526,1745700644846,-6683.41,0.00019799,2]
[359085528,1745700644856,-400.0,0.00019799,2]
[359085530,1745700644865,-400.0,0.00019799,2]
[359085532,1745700644875,-11217.76,0.00019799,2]
[359085534,1745700644884,-400.0,0.00019799,2]
[359085536,1745700644894,-400.0,0.00019799,2]
[359085538,1745700644903,-400.0,0.00019799,2]
[359085540,1745700644913,-400.0,0.00019799,2]
[359085542,1745700644923,-19999.99,0.00019799,2]
[359085544,1745700644932,-518.58376662,0.00019799,2]
[359085546,1745700644942,-400.0,0.00019799,2]
[359085548,1745700644951,-400.0,0.00019799,2]
[359085550,1745700644960,-400.0,0.00019799,2]
[359085552,1745700644970,-400.0,0.00019799,2]
[359085554,1745700644979,-400.0,0.00019799,2]
[359085556,1745700644989,-561.97,0.00019799,2]
[359085558,1745700644998,-400.0,0.00019799,2]
[359085560,1745700645008,-400.0,0.00019799,2]
[359085562,1745700645018,-400.0,0.00019799,2]
[359085564,1745700645027,-400.0,0.00019799,2]
[359085566,1745700645037,-1365.9,0.00019799,2]
[359085568,1745700645046,-500.0,0.00019799,2]
[359085570,1745700645056,-400.0,0.00019799,2]
[359085572,1745700645065,-400.0,0.00019799,2]
[359085574,1745700645076,-400.0,0.00019799,2]
[359085576,1745700645085,-400.0,0.00019799,2]
[359085578,1745700645094,-400.0,0.00019799,2]
[359085580,1745700645104,-400.0,0.00019799,2]
[359085582,1745700645114,-400.0,0.00019799,2]
[359085584,1745700645123,-400.0,0.00019799,2]
[359085586,1745700645132,-500.0,0.00019799,2]
[359085588,1745700645142,-238.91678823,0.00019799,2]
[359085590,1745700645151,-400.0,0.00019799,2]
[359085592,1745700645161,-400.0,0.00019799,2]
[359085594,1745700645171,-400.0,0.00019799,2]
[359085596,1745700645181,-400.0,0.00019799,2]
[359085598,1745700645191,-500.0,0.00019799,2]
[359085600,1745700645201,-500.0,0.00019799,2]
[359085602,1745700645211,-110.0535031,0.00019799,2]
[359085651,1745700645673,-647.6864969,0.00019799,2]
[359085654,1745700645685,-757.74,0.00019799,2]
[359085656,1745700645695,-515.42272426,0.00019799,2]
[359085658,1745700645705,-400.0,0.00019799,2]
[359085660,1745700645715,-500.0,0.00019799,2]
[359085662,1745700645725,-506.30943716,0.00019799,2]
[359085664,1745700645734,-400.0,0.00019799,2]
[359085665,1745700645743,-400.0,0.00019799,2]
[359085666,1745700645753,-400.0,0.00019799,2]
[359085667,1745700645763,-400.0,0.00019799,2]
[359085668,1745700645779,-584.18,0.00019799,2]
[359085669,1745700645791,-400.0,0.00019799,2]
[359085670,1745700645801,-400.0,0.00019799,2]
[359085671,1745700645811,-400.0,0.00019799,2]
[359085672,1745700645823,-400.0,0.00019799,2]
[359085673,1745700645833,-400.0,0.00019799,2]
[359085674,1745700645843,-416.78,0.00019799,2]
[359085676,1745700645854,-400.0,0.00019799,2]
[359085678,1745700645865,-400.0,0.00019799,2]
[359085680,1745700645875,-400.0,0.00019799,2]
[359085682,1745700645885,-400.0,0.00019799,2]
[359085684,1745700645895,-400.0,0.00019799,2]
[359085686,1745700645906,-407.31,0.00019799,2]
[359085688,1745700645917,-588.44,0.00019799,2]
[359085690,1745700645926,-502.9539834,0.00019799,2]
[359085692,1745700645937,-400.0,0.00019799,2]
[359085694,1745700645947,-531.15,0.00019799,2]
[359085696,1745700645957,-1396.78,0.00019799,2]
[359085698,1745700645967,-395.04628918,0.00019799,2]
[359085700,1745700645977,-400.0,0.00019799,2]
[359085702,1745700645987,-400.0,0.00019799,2]
[359085704,1745700645998,-400.0,0.00019799,2]
[359085706,1745700646008,-400.0,0.00019799,2]
[359085708,1745700646018,-445.66,0.00019799,2]
[359085710,1745700646028,-486.52,0.00019799,2]
[359085712,1745700646038,-400.0,0.00019799,2]
[359085714,1745700646048,-400.0,0.00019799,2]
[359085716,1745700646058,-741.03,0.00019799,2]
[359085718,1745700646067,-500.0,0.00019799,2]
[359085721,1745700646078,-500.0,0.00019799,2]
[359085723,1745700646089,-400.0,0.00019799,2]
[359085725,1745700646100,-251.69064904,0.00019799,2]
[359085727,1745700646110,-500.0,0.00019799,2]
[359085729,1745700646120,-400.0,0.00019799,2]
[359085731,1745700646130,-414.46,0.00019799,2]
[359085733,1745700646140,-400.0,0.00019799,2]
[359085735,1745700646150,-400.0,0.00019799,2]
[359085737,1745700646160,-400.0,0.00019799,2]
[359085739,1745700646170,-400.0,0.00019799,2]
[359085741,1745700646181,-500.0,0.00019799,2]
[359085743,1745700646191,-400.0,0.00019799,2]
[359085745,1745700646200,-400.0,0.00019799,2]
[359085747,1745700646215,-400.0,0.00019799,2]
[359085750,1745700646226,-500.0,0.00019799,2]
[359085752,1745700646237,-400.0,0.00019799,2]
[359085754,1745700646247,-481.63,0.00019799,2]
[359085756,1745700646257,-400.0,0.00019799,2]
[359085758,1745700646267,-400.0,0.00019799,2]
[359085760,1745700646277,-400.0,0.00019799,2]
[359085762,1745700646288,-647.36,0.00019799,2]
[359085764,1745700646298,-400.0,0.00019799,2]
[359085766,1745700646308,-400.0,0.00019799,2]
[359085768,1745700646319,-400.0,0.00019799,2]
[359085770,1745700646329,-400.0,0.00019799,2]
[359085772,1745700646339,-1470.95,0.00019799,2]
[359085774,1745700646349,-400.0,0.00019799,2]
[359085776,1745700646359,-465.66,0.00019799,2]
[359085778,1745700646370,-433.56,0.00019799,2]
[359085780,1745700646380,-400.0,0.00019799,2]
[359085782,1745700646390,-500.0,0.00019799,2]
[359085784,1745700646400,-400.0,0.00019799,2]
[359085786,1745700646410,-507.73663296,0.00019799,2]
[359085788,1745700646420,-400.0,0.00019799,2]
[359085790,1745700646430,-505.18,0.00019799,2]
[359085792,1745700646440,-400.0,0.00019799,2]
[359085794,1745700646450,-400.0,0.00019799,2]
[359085809,1745700646584,-400.0,0.00019799,2]
[359085811,1745700646594,-502.21703479,0.00019799,2]
[359085813,1745700646604,-400.0,0.00019799,2]
[359085816,1745700646618,-400.0,0.00019799,2]
[359085818,1745700646628,-400.0,0.00019799,2]
[359085820,1745700646637,-400.0,0.00019799,2]
[359085822,1745700646646,-400.0,0.00019799,2]
[359085824,1745700646655,-400.0,0.00019799,2]
[359085826,1745700646665,-400.0,0.00019799,2]
[359085828,1745700646674,-549.2,0.00019799,2]
[359085830,1745700646684,-484.55,0.00019799,2]
[359085832,1745700646693,-400.0,0.00019799,2]
[359085834,1745700646703,-500.0,0.00019799,2]
[359085836,1745700646713,-500.0,0.00019799,2]
[359085838,1745700646722,-691.27,0.00019799,2]
[359085839,1745700646732,-400.0,0.00019799,2]
[359085842,1745700646744,-489.61,0.00019799,2]
[359085844,1745700646755,-495.83,0.00019799,2]
[359085845,1745700646765,-400.0,0.00019799,2]
[359085848,1745700646775,-400.0,0.00019799,2]
[359085849,1745700646785,-400.0,0.00019799,2]
[359085852,1745700646795,-400.0,0.00019799,2]
[359085854,1745700646804,-566.58,0.00019799,2]
[359085855,1745700646813,-400.0,0.00019799,2]
[359085857,1745700646823,-400.0,0.00019799,2]
[359085859,1745700646832,-400.0,0.00019799,2]
[359085861,1745700646842,-400.0,0.00019799,2]
[359085863,1745700646851,-258.1716185,0.00019799,2]
[359085865,1745700646861,-400.0,0.00019799,2]
[359085867,1745700646871,-400.0,0.00019799,2]
[359085869,1745700646880,-400.0,0.00019799,2]
[359085871,1745700646889,-400.0,0.00019799,2]
[359085873,1745700646898,-510.4999362,0.00019799,2]
[359085875,1745700646907,-400.0,0.00019799,2]
[359085877,1745700646917,-400.0,0.00019799,2]
[359085879,1745700646926,-400.0,0.00019799,2]
[359085881,1745700646935,-400.0,0.00019799,2]
[359085883,1745700646944,-400.0,0.00019799,2]
[359085885,1745700646954,-400.0,0.00019799,2]
[359085887,1745700646963,-400.0,0.00019799,2]
[359085889,1745700646972,-400.0,0.00019799,2]
[359085891,1745700646982,-400.0,0.00019799,2]
[359085893,1745700646991,-400.0,0.00019799,2]
[359085895,1745700647001,-539.97,0.00019799,2]
[359085898,1745700647010,-400.0,0.00019799,2]
[359085899,1745700647020,-400.0,0.00019799,2]
[359085901,1745700647029,-500.0,0.00019799,2]
[359085903,1745700647039,-400.0,0.00019799,2]
[359085905,1745700647048,-400.0,0.00019799,2]
[359085908,1745700647058,-400.0,0.00019799,2]
[359085910,1745700647080,-588.78,0.00019799,2]
[359085911,1745700647089,-528.99536645,0.00019799,2]
[359085912,1745700647099,-620.5,0.00019799,2]
[359085913,1745700647108,-526.98,0.00019799,2]
[359085914,1745700647117,-400.0,0.00019799,2]
[359085915,1745700647127,-400.0,0.00019799,2]
[359085916,1745700647137,-400.0,0.00019799,2]
[359085917,1745700647146,-500.0,0.00019799,2]
[359085918,1745700647155,-566.2,0.00019799,2]
[359085919,1745700647165,-400.0,0.00019799,2]
[359085920,1745700647174,-505.80791502,0.00019799,2]
[359085921,1745700647183,-400.0,0.00019799,2]
[359085923,1745700647193,-400.0,0.00019799,2]
[359085925,1745700647203,-400.0,0.00019799,2]
[359085927,1745700647213,-400.0,0.00019799,2]
[359085929,1745700647222,-294.63196664,0.00019799,2]
[359085931,1745700647231,-529.05749259,0.00019799,2]
[359085933,1745700647241,-400.0,0.00019799,2]
[359085935,1745700647250,-614.87,0.00019799,2]
[359085937,1745700647259,-507.27729147,0.00019799,2]
[359085939,1745700647268,-416.49,0.00019799,2]
[359085941,1745700647278,-400.0,0.00019799,2]
[359085943,1745700647287,-1605.53,0.00019799,2]
[359085945,1745700647297,-400.0,0.00019799,2]
[359085947,1745700647307,-400.0,0.00019799,2]
[359085949,1745700647316,-400.0,0.00019799,2]
[359085951,1745700647326,-400.0,0.00019799,2]
[359085953,1745700647336,-400.0,0.00019799,2]
[359085955,1745700647345,-609.73,0.00019799,2]
[359085957,1745700647355,-400.0,0.00019799,2]
[359085959,1745700647364,-426.06,0.00019799,2]
[359085961,1745700647375,-400.0,0.00019799,2]
[359085963,1745700647385,-490.5,0.00019799,2]
[359085965,1745700647394,-400.0,0.00019799,2]
[359085967,1745700647403,-400.0,0.00019799,2]
[359085969,1745700647413,-300.0,0.00019799,2]
[359085971,1745700647422,-400.0,0.00019799,2]
[359085973,1745700647432,-400.0,0.00019799,2]
[359085975,1745700647441,-454.36,0.00019799,2]
[359085977,1745700647451,-400.0,0.00019799,2]
[359085979,1745700647461,-400.0,0.00019799,2]
[359085981,1745700647470,-400.0,0.00019799,2]
[359085983,1745700647480,-524.85641366,0.00019799,2]
[359085985,1745700647489,-400.0,0.00019799,2]
[359085987,1745700647498,-400.0,0.00019799,2]
[359085989,1745700647507,-400.0,0.00019799,2]
[359085991,1745700647517,-400.0,0.00019799,2]
[359085993,1745700647527,-344.21204829,0.00019799,2]
[359085995,1745700647536,-400.0,0.00019799,2]
[359085997,1745700647546,-400.0,0.00019799,2]
[359085999,1745700647555,-400.0,0.00019799,2]
[359086001,1745700647565,-401.87,0.00019799,2]
[359086003,1745700647574,-400.0,0.00019799,2]
[359086005,1745700647583,-653.15,0.00019799,2]
[359086007,1745700647593,-400.0,0.00019799,2]
[359086009,1745700647602,-400.0,0.00019799,2]
[359086011,1745700647612,-400.0,0.00019799,2]
[359086013,1745700647621,-400.0,0.00019799,2]
[359086015,1745700647630,-400.0,0.00019799,2]
[359086017,1745700647640,-400.0,0.00019799,2]
[359086019,1745700647649,-400.0,0.00019799,2]
[359086021,1745700647658,-400.0,0.00019799,2]
[359086023,1745700647668,-400.0,0.00019799,2]
[359086025,1745700647677,-400.0,0.00019799,2]
[359086027,1745700647686,-400.0,0.00019799,2]
[359086029,1745700647696,-400.0,0.00019799,2]
[359086031,1745700647705,-400.0,0.00019799,2]
[359086033,1745700647714,-400.0,0.00019799,2]
[359086035,1745700647725,-400.0,0.00019799,2]
[359086037,1745700647734,-717.96,0.00019799,2]
[359086039,1745700647743,-400.0,0.00019799,2]
[359086040,1745700647752,-400.0,0.00019799,2]
[359086041,1745700647762,-400.0,0.00019799,2]
[359086043,1745700647771,-400.0,0.00019799,2]
[359086044,1745700647781,-400.0,0.00019799,2]
[359086046,1745700647790,-764.82,0.00019799,2]
[359086047,1745700647800,-400.0,0.00019799,2]
[359086049,1745700647809,-400.0,0.00019799,2]
[359086050,1745700647819,-400.0,0.00019799,2]
[359086052,1745700647834,-735.8646718,0.00019799,2]
[359086053,1745700647843,-681.38,0.00019799,2]
[359086054,1745700647852,-400.0,0.00019799,2]
[359086056,1745700647861,-568.54,0.00019799,2]
[359086057,1745700647871,-400.0,0.00019799,2]
[359086059,1745700647881,-400.0,0.00019799,2]
[359086060,1745700647890,-400.0,0.00019799,2]
[359086062,1745700647899,-637.14,0.00019799,2]
[359086063,1745700647909,-400.0,0.00019799,2]
[359086065,1745700647918,-400.0,0.00019799,2]
[359086066,1745700647927,-400.0,0.00019799,2]
[359086068,1745700647937,-400.0,0.00019799,2]
[359086069,1745700647946,-400.0,0.00019799,2]
[359086071,1745700647955,-400.0,0.00019799,2]
[359086072,1745700647965,-400.0,0.00019799,2]
[359086074,1745700647975,-478.46,0.00019799,2]
[359086075,1745700647984,-400.0,0.00019799,2]
[359086077,1745700647995,-400.0,0.00019799,2]
[359086078,1745700648006,-400.0,0.00019799,2]
[359086080,1745700648015,-435.25997266,0.00019799,2]
[359086081,1745700648024,-400.0,0.00019799,2]
[359086083,1745700648033,-400.0,0.00019799,2]
[359086085,1745700648043,-500.0,0.00019799,2]
[359086086,1745700648053,-400.0,0.00019799,2]
[359086088,1745700648062,-509.13,0.00019799,2]
[359086089,1745700648072,-400.0,0.00019799,2]
[359086091,1745700648081,-611.72,0.00019799,2]
[359086092,1745700648091,-400.0,0.00019799,2]
[359086094,1745700648100,-400.0,0.00019799,2]
[359086095,1745700648109,-500.0,0.00019799,2]
[359086097,1745700648119,-500.0,0.00019799,2]
[359086099,1745700648129,-400.0,0.00019799,2]
[359086100,1745700648139,-400.0,0.00019799,2]
[359086102,1745700648149,-648.14,0.00019799,2]
[359086103,1745700648158,-400.0,0.00019799,2]
[359086105,1745700648168,-400.0,0.00019799,2]
[359086106,1745700648178,-600.3,0.00019799,2]
[359086108,1745700648187,-400.0,0.00019799,2]
[359086109,1745700648196,-230.95900418,0.00019799,2]
[359086111,1745700648206,-333.08239048,0.00019799,2]
[359086113,1745700648215,-400.0,0.00019799,2]
[359086114,1745700648224,-400.0,0.00019799,2]
[359086116,1745700648234,-400.0,0.00019799,2]
[359086117,1745700648243,-402.43,0.00019799,2]
[359086119,1745700648253,-721.02,0.00019799,2]
[359086120,1745700648262,-400.0,0.00019799,2]
[359086122,1745700648271,-500.0,0.00019799,2]
[359086123,1745700648281,-500.0,0.00019799,2]
[359086125,1745700648291,-674.14,0.00019799,2]
[359086126,1745700648300,-151.0,0.00019849,2]
[359086128,1745700648309,-207.4,0.00019849,2]
[359086130,1745700648319,-542.26,0.0001986,2]
[359086131,1745700648329,-817.03,0.0001986,2]
[359086133,1745700648338,-400.0,0.0001986,2]
[359086134,1745700648347,-400.0,0.0001986,2]
[359086136,1745700648357,-2565.36,0.0001986,2]
[359086137,1745700648366,-505.0,0.0001986,2]
[359086139,1745700648375,-1150.16,0.0001986,2]
[359086140,1745700648384,-400.0,0.0001986,2]
[359086142,1745700648394,-400.0,0.0001986,2]
[359086143,1745700648404,-875.79,0.0001986,2]
[359086145,1745700648414,-462.76,0.0001986,2]
[359086146,1745700648423,-821.41,0.0001986,2]
[359086148,1745700648433,-2321.02,0.0001986,2]
[359086150,1745700648443,-3798.84,0.0001986,2]
[359086151,1745700648452,-438.67,0.0001986,2]
[359086153,1745700648462,-707.26,0.0001986,2]
[359086154,1745700648471,-932.08,0.0001986,2]
[359086156,1745700648481,-562.78,0.0001986,2]
[359086157,1745700648493,-433.53,0.0001986,2]
[359086159,1745700648502,-75188.99,0.0001986,2]
[359086160,1745700648512,-400.0,0.0001986,2]
[359086162,1745700648522,-584.36,0.0001986,2]
[359086164,1745700648531,-9046.58,0.0001986,2]
[359086165,1745700648541,-482.69,0.0001986,2]
[359086167,1745700648550,-4462.53,0.0001986,2]
[359086168,1745700648560,-1733.35,0.0001986,2]
[359086170,1745700648570,-782.38,0.0001986,2]
[359086171,1745700648580,-450.98,0.0001986,2]
[359086173,1745700648589,-680.79,0.0001986,2]
[359086175,1745700648599,-400.0,0.0001986,2]
[359086176,1745700648608,-400.0,0.0001986,2]
[359086178,1745700648618,-379.28087059,0.0001986,2]
[359086179,1745700648627,-400.0,0.00019861,2]
[359086181,1745700648637,-400.0,0.00019861,2]
[359086182,1745700648646,-400.0,0.00019861,2]
[359086184,1745700648656,-400.0,0.00019861,2]
[359086186,1745700648666,-400.0,0.00019861,2]
[359086188,1745700648676,-400.0,0.00019861,2]
[359086190,1745700648685,-400.0,0.00019861,2]
[359086192,1745700648694,-400.0,0.00019861,2]
[359086194,1745700648704,-400.0,0.00019861,2]
[359086196,1745700648714,-400.0,0.00019861,2]
[359086197,1745700648724,-400.0,0.00019861,2]
[359086198,1745700648734,-400.0,0.00019861,2]
[359086199,1745700648744,-400.0,0.00019861,2]
[359086200,1745700648754,-400.0,0.00019861,2]
[359086201,1745700648765,-400.0,0.00019861,2]
[359086202,1745700648775,-500.0,0.00019861,2]
[359086203,1745700648785,-400.0,0.00019862,2]
[359086204,1745700648795,-726.16,0.00019862,2]
[359086205,1745700648805,-400.0,0.00019862,2]
[359086206,1745700648815,-400.0,0.00019862,2]
[359086207,1745700648825,-489.72,0.00019862,2]
[359086208,1745700648835,-896.12,0.00019862,2]
[359086209,1745700648845,-400.0,0.00019862,2]
[359086210,1745700648855,-400.0,0.00019862,2]
[359086211,1745700648865,-380.18,0.00019862,2]
[359086212,1745700648875,-400.0,0.00019862,2]
[359086213,1745700648886,-400.0,0.00019862,2]
[359086214,1745700648896,-700.85,0.00019862,2]
[359086215,1745700648906,-400.0,0.00019862,2]
[359086217,1745700648916,-704.67,0.00019862,2]
[359086218,1745700648925,-438.94,0.00019862,2]
[359086219,1745700648936,-707.13,0.00019862,2]
[359086221,1745700648946,-579.1,0.00019862,2]
[359086223,1745700648956,-151.0,0.00019879,2]
[359086225,1745700648966,-151.0,0.00019879,2]
[359086227,1745700648976,-151.0,0.00019879,2]
[359086229,1745700648988,-151.0,0.00019879,2]
[359086232,1745700648999,-151.0,0.00019879,2]
[359086234,1745700649009,-151.0,0.0001988,2]
[359086236,1745700649019,-151.0,0.0001988,2]
[359086238,1745700649029,-151.0,0.00019881,2]
[359086240,1745700649039,-538.44,0.00019899,2]
[359086242,1745700649049,-500.0,0.00019899,2]
[359086244,1745700649059,-757.74,0.00019899,2]
[359086246,1745700649069,-371.62,0.00019899,2]
[359086248,1745700649080,-500.0,0.00019899,2]
[359086250,1745700649090,-899.90146358,0.000199,2]
[359086252,1745700649100,-1616.54908221,0.000199,2]
[359086254,1745700649110,-1336.0,0.00019965,2]
[359086256,1745700649120,-920.0,0.00019965,2]
[359086259,1745700649131,-796.0,0.00019965,2]
[359086261,1745700649141,-1287.0,0.00019965,2]
[359086263,1745700649151,-548.0,0.00019965,2]
[359086265,1745700649163,-1446.0,0.00019965,2]
[359086267,1745700649173,-579.0,0.00019965,2]
[359086269,1745700649184,-2063.0,0.00019965,2]
[359086271,1745700649195,-911.0,0.00019965,2]
[359086273,1745700649205,-6193.0,0.00019965,2]
[359086275,1745700649216,-150.0,0.00019965,2]
[359086277,1745700649226,-201.859,0.00019965,2]
[359086280,1745700649238,-257.141,0.00019965,2]
[359086282,1745700649248,-190.002,0.00019965,2]
[359086284,1745700649258,-166.223,0.00019965,2]
[359086286,1745700649268,-249.813,0.00019965,2]
[359086288,1745700649278,-1822.0,0.00019965,2]
[359086290,1745700649289,-3991.0,0.00019965,2]
[359086292,1745700649299,-155.315,0.00019965,2]
[359086294,1745700649309,-150.647,0.00019965,2]
[359086296,1745700649320,-872.0,0.00019965,2]
[359086298,1745700649330,-877.0,0.00019965,2]
[359086300,1745700649340,-152.676,0.00019965,2]
[359086302,1745700649352,-502.0147822,0.00019973,2]
[359086304,1745700649362,-187.0,0.00019973,2]
[359086306,1745700649372,-500.0,0.00019973,2]
[359086308,1745700649383,-500.0,0.00019973,2]
[359086310,1745700649393,-500.0,0.00019973,2]
[359086313,1745700649405,-218.67076286,0.00019973,2]
[359086315,1745700649418,-500.0,0.00019973,2]
[359086317,1745700649429,-558.66003385,0.00019973,2]
[359086319,1745700649441,-500.0,0.00019973,2]
[359086321,1745700649452,-631.98009462,0.00019973,2]
[359086323,1745700649463,-500.0,0.00019973,2]
[359086325,1745700649474,-500.0,0.00019973,2]
[359086327,1745700649485,-446.33781423,0.0001999,2]
[359086330,1745700649495,-446.33781423,0.0001999,2]
[359086332,1745700649506,-446.33781423,0.0001999,2]
[359086334,1745700649516,-500.0,0.00019999,2]
[359086336,1745700649526,-500.0,0.00019999,2]
[359086338,1745700649537,-500.0,0.00019999,2]